[Event "WTCC-50 2018"]
[Site "Radebeul"]
[Date "2018.07.07"]
[Round "1"]
[White "Benjamin, Joel"]
[Black "Bowmer, Kevin"]
[Result "1-0"]
[ECO "B52"]
[WhiteElo "2544"]
[BlackElo "2039"]
[Annotator "RC"]
[PlyCount "81"]
[EventDate "2018.07.07"]
[EventType "team-tourn"]
[EventCountry "GER"]
[SourceTitle "playchess.com"]
[Source "ChessBase"]
[SourceQuality "1"]
[TimeControl "40/5400+30:1800+30"]

1. e4 {[%emt 0:00:00]} c5 {[%emt 0:00:00]} 2. Nf3 {[%emt 0:00:00]} d6 {[%emt 0:00:00]} 3. Bb5+ {[%emt 0:00:28]} Bd7 {[%emt 0:00:14]} 4. Bxd7+ {[%emt 0:00:06]} Qxd7 {[%emt 0:00:15]} 5. c4 {[%emt 0:01:09]} Nf6 {[%emt 0:01:00]} 6. Nc3 {[%emt 0:00:07]} g6 {[%emt 0:00:48]} 7. d4 {[%emt 0:03:01]} cxd4 {[%emt 0:01:00]} 8. Nxd4 {[%emt 0:00:09]} Bg7 {[%emt 0:00:30]} 9. f3 {[%emt 0:04:11]} O-O {[%emt 0:01:37]} 10. Bg5 {[%emt 0:06:32]} Nc6 {[%emt 0:07:02]} 11. Nde2 {[%emt 0:01:24]} Qc7 {[%emt 0:06:39]} 12. b3 {[%emt 0:02:58]} Qa5 {[%emt 0:06:08]} 13. Qd2 {[%emt 0:04:35]} a6 {[%emt 0:05:07]} 14. Rc1 {[%emt 0:01:47]} Nd7 {[%emt 0:19:37]} 15. Nd5 {[%emt 0:10:47]} Qxd2+ {[%emt 0:01:54]} 16. Kxd2 {[%emt 0:00:52]} f6 {[%emt 0:05:05]} 17. Be3 {[%emt 0:00:48]} Rac8 {[%emt 0:03:38]} 18. Nef4 {[%emt 0:03:54]} Kf7 {[%emt 0:01:00]} 19. Rhd1 {[%emt 0:03:46]} f5 {[%emt 0:03:12]} 20. exf5 {[%emt 0:11:28]} gxf5 {[%emt 0:00:55]} 21. Nh5 {[%emt 0:00:31]} Bb2 {[%emt 0:07:18]} 22. Rc2 {[%emt 0:01:01]} Be5 {[%emt 0:01:13]} 23. f4 {[%emt 0:01:05]} Bh8 {[%emt 0:01:35]} 24. Ke1 {[%emt 0:00:23]} e6 {[%emt 0:05:19]} 25. Nb6 {[%emt 0:00:53]} Nxb6 {[%emt 0:01:24]} 26. Bxb6 {[%emt 0:00:06]} Nb4 {[%emt 0:07:50]} 27. Re2 {[%emt 0:00:59]} Ke7 {[%emt 0:03:40]} 28. Kf1 {[%emt 0:01:22]} Rc6 {[%emt 0:03:31]} 29. Bf2 {[%emt 0:09:07]} a5 {[%emt 0:00:30]} 30. Rde1 {[%emt 0:00:21]} d5 {[%emt 0:01:54]} 31. a3 {[%emt 0:00:40]} dxc4 {[%emt 0:00:38]} 32. axb4 {[%emt 0:00:13]} axb4 {[%emt 0:00:49]} 33. bxc4 {[%emt 0:00:48]} b3 {[%emt 0:01:24]} 34. c5 {[%emt 0:08:15]} Ra8 {[%emt 0:01:18]} 35. Ng3 {[%emt 0:00:54]} b2 {[%emt 0:01:01]} 36. Nxf5+ {[%emt 0:00:23]} Kf8 {[%emt 0:02:22]} 37. Nd4 {[%emt 0:01:15]} Ra1 {[%emt 0:00:31]} 38. Rxb2 {[%emt 0:00:28]} Rxe1+ {[%emt 0:00:12]} 39. Kxe1 {[%emt 0:00:14]} Ra6 {[%emt 0:00:38]} 40. Rxb7 {[%emt 0:00:42]} Ra2 {[%emt 0:00:36]} 41. Nxe6+ {[%emt 0:30:26]} 1-0

[Event "WTCC-50 2018"]
[Site "Radebeul"]
[Date "2018.07.07"]
[Round "1"]
[White "Schlosser, Philipp"]
[Black "Mohs, Juergen"]
[Result "1-0"]
[ECO "A06"]
[WhiteElo "2501"]
[BlackElo "2042"]
[Annotator "ChessBase"]
[PlyCount "109"]
[EventDate "2018.07.07"]
[EventType "team-tourn"]
[EventCountry "GER"]
[SourceTitle "playchess.com"]
[Source "ChessBase"]
[SourceQuality "1"]
[TimeControl "40/5400+30:1800+30"]

1. Nf3 {[%emt 0:00:00]} d5 {[%emt 0:00:00]} 2. g3 {[%emt 0:00:00]} c6 {[%emt 0:00:00]} 3. Bg2 {[%emt 0:00:00]} Nd7 {[%emt 0:00:09]} 4. d4 {[%emt 0:00:18]} e6 {[%emt 0:00:25]} 5. O-O {[%emt 0:00:16]} Be7 {[%emt 0:02:00]} 6. c4 {[%emt 0:01:12]} Ngf6 {[%emt 0:03:20]} 7. Qc2 {[%emt 0:00:17]} Ne4 {[%emt 0:02:05]} 8. b3 {[%emt 0:12:53]} f5 {[%emt 0:03:22]} 9. Ba3 {[%emt 0:01:47]} Bxa3 {[%emt 0:06:11]} 10. Nxa3 {[%emt 0:00:03]} O-O {[%emt 0:00:25]} 11. Rac1 {[%emt 0:01:43]} Qe7 {[%emt 0:05:50]} 12. Qb2 {[%emt 0:00:14]} Ng5 {[%emt 0:12:41]} 13. Nc2 {[%emt 0:06:57]} Nxf3+ {[%emt 0:02:37]} 14. exf3 {[%emt 0:00:50]} Qf6 {[%emt 0:02:45]} 15. f4 {[%emt 0:00:23]} Nc5 {[%emt 0:02:51]} 16. Qa3 {[%emt 0:07:36]} Na6 {[%emt 0:01:36]} 17. Rfe1 {[%emt 0:03:10]} Rd8 {[%emt 0:13:22]} 18. Re5 {[%emt 0:05:25]} Qf8 {[%emt 0:00:51]} 19. Qa5 {[%emt 0:00:25]} Bd7 {[%emt 0:14:11]} 20. Bf1 {[%emt 0:07:36]} Nb8 {[%emt 0:01:32]} 21. Rce1 {[%emt 0:04:10]} b6 {[%emt 0:01:38]} 22. Qc3 {[%emt 0:00:25]} Qd6 {[%emt 0:04:14]} 23. h3 {[%emt 0:05:44]} a5 {[%emt 0:01:34]} 24. a3 {[%emt 0:03:57]} Na6 {[%emt 0:00:31]} 25. g4 {[%emt 0:03:16]} g6 {[%emt 0:04:02]} 26. b4 {[%emt 0:05:55]} axb4 {[%emt 0:01:12]} 27. axb4 {[%emt 0:00:03]} Nc7 {[%emt 0:00:48]} 28. c5 {[%emt 0:02:17]} bxc5 {[%emt 0:00:35]} 29. dxc5 {[%emt 0:00:04]} Qf8 {[%emt 0:00:48]} 30. g5 {[%emt 0:00:57]} Ra7 {[%emt 0:08:11]} 31. Ra1 {[%emt 0:01:39]} Rxa1 {[%emt 0:00:42]} 32. Qxa1 {[%emt 0:00:03]} Ra8 {[%emt 0:00:18]} 33. Qc3 {[%emt 0:00:36]} Qb8 {[%emt 0:03:54]} 34. h4 {[%emt 0:04:14]} Ra4 {[%emt 0:00:51]} 35. Be2 {[%emt 0:00:39]} Qa8 {[%emt 0:00:15]} 36. h5 {[%emt 0:00:22]} Ra2 {[%emt 0:00:14]} 37. Re3 {[%emt 0:02:22]} gxh5 {[%emt 0:00:34]} 38. Bxh5 {[%emt 0:00:26]} Qf8 {[%emt 0:00:29]} 39. Nd4 {[%emt 0:03:38]} Qg7 {[%emt 0:00:35]} 40. Be2 {[%emt 0:01:03]} Ra8 {[%emt 0:01:08]} 41. Qd2 {[%emt 0:36:04]} Qf8 {[%emt 0:02:13]} 42. Kg2 {[%emt 0:00:00]} Qg7 {[%emt 0:03:08]} 43. Rh3 {[%emt 0:00:00]} Re8 {[%emt 0:11:29]} 44. Nf3 {[%emt 0:00:00]} Ra8 {[%emt 0:03:23]} 45. Ne5 {[%emt 0:00:00]} Be8 {[%emt 0:00:37]} 46. Qb2 {[%emt 0:00:00]} Rb8 {[%emt 0:02:00]} 47. Ra3 {[%emt 0:00:00]} Ra8 {[%emt 0:01:55]} 48. Rh3 {[%emt 0:00:00]} Rb8 {[%emt 0:00:03]} 49. Qd4 {[%emt 0:00:00]} Rc8 {[%emt 0:01:16]} 50. Ra3 {[%emt 0:00:00]} Ra8 {[%emt 0:00:24]} 51. Ra5 {[%emt 0:00:00]} Qe7 {[%emt 0:00:58]} 52. Nf3 {[%emt 0:00:00]} Bh5 {[%emt 0:03:03]} 53. Qe5 {[%emt 0:00:00]} Bxf3+ {[%emt 0:00:43]} 54. Kxf3 {[%emt 0:00:00]} Qd7 {[%emt 0:02:36]} 55. Rxa8+ {[%emt 0:00:00] Qe7} 1-0

[Event "WTCC-50 2018"]
[Site "Radebeul"]
[Date "2018.07.07"]
[Round "1"]
[White "Levin, Felix"]
[Black "Goormachtigh, Johan"]
[Result "1-0"]
[ECO "B38"]
[WhiteElo "2466"]
[BlackElo "2148"]
[Annotator "ChessBase"]
[PlyCount "109"]
[EventDate "2018.07.07"]
[EventType "team-tourn"]
[EventCountry "GER"]
[SourceTitle "playchess.com"]
[Source "ChessBase"]
[SourceQuality "1"]
[TimeControl "40/5400+30:1800+30"]

1. c4 {[%emt 0:00:00]} c5 {[%emt 0:00:08]} 2. Nf3 {[%emt 0:00:00]} Nc6 {[%emt 0:00:32]} 3. d4 {[%emt 0:01:48]} cxd4 {[%emt 0:00:09]} 4. Nxd4 {[%emt 0:00:04]} g6 {[%emt 0:00:45]} 5. e4 {[%emt 0:00:29]} Bg7 {[%emt 0:00:16]} 6. Be3 {[%emt 0:00:27]} Nf6 {[%emt 0:01:28]} 7. Nc3 {[%emt 0:00:09]} d6 {[%emt 0:00:35]} 8. Be2 {[%emt 0:00:30]} O-O {[%emt 0:00:18]} 9. O-O {[%emt 0:04:37]} Nxd4 {[%emt 0:01:26]} 10. Bxd4 {[%emt 0:00:08]} Bd7 {[%emt 0:01:00]} 11. Qd2 {[%emt 0:06:51]} Bc6 {[%emt 0:01:22]} 12. f3 {[%emt 0:00:13]} a5 {[%emt 0:00:47]} 13. b3 {[%emt 0:01:44]} Nd7 {[%emt 0:01:16]} 14. Be3 {[%emt 0:00:08]} Nc5 {[%emt 0:00:25]} 15. Rab1 {[%emt 0:00:28]} Be5 {[%emt 0:03:23]} 16. Bd1 {[%emt 0:17:03]} e6 {[%emt 0:22:47]} 17. a3 {[%emt 0:07:38]} Qh4 {[%emt 0:29:21]} 18. g3 {[%emt 0:00:25]} Qe7 {[%emt 0:00:02]} 19. b4 {[%emt 0:03:10]} axb4 {[%emt 0:00:35]} 20. axb4 {[%emt 0:00:08]} Ra3 {[%emt 0:05:02]} 21. Nb5 {[%emt 0:26:01]} Bxb5 {[%emt 0:09:18]} 22. cxb5 {[%emt 0:00:13]} Na4 {[%emt 0:04:43]} 23. Bxa4 {[%emt 0:00:17]} Rxa4 {[%emt 0:00:06]} 24. f4 {[%emt 0:00:20]} Bg7 {[%emt 0:03:58]} 25. Rfd1 {[%emt 0:00:32]} Qd7 {[%emt 0:02:17]} 26. b6 {[%emt 0:10:52]} Qc6 {[%emt 0:00:47]} 27. Qd3 {[%emt 0:00:25]} d5 {[%emt 0:02:29]} 28. Rbc1 {[%emt 0:01:35]} dxe4 {[%emt 0:02:28]} 29. Qd7 {[%emt 0:04:12]} Qxd7 {[%emt 0:01:54]} 30. Rxd7 {[%emt 0:00:03]} Rxb4 {[%emt 0:02:01]} 31. Bc5 {[%emt 0:00:48]} Rb2 {[%emt 0:00:51]} 32. Bxf8 {[%emt 0:09:01]} Bxf8 {[%emt 0:00:02]} 33. Rxb7 {[%emt 0:00:23]} e3 {[%emt 0:00:44]} 34. Rb8 {[%emt 0:00:40]} Kg7 {[%emt 0:01:01]} 35. b7 {[%emt 0:00:29]} Be7 {[%emt 0:01:26]} 36. Kf1 {[%emt 0:02:42]} Rf2+ {[%emt 0:00:27]} 37. Kg1 {[%emt 0:00:20]} Rb2 {[%emt 0:00:02]} 38. Rc4 {[%emt 0:01:53]} f5 {[%emt 0:01:45]} 39. Rc1 {[%emt 0:01:46]} h6 {[%emt 0:00:53]} 40. Re1 {[%emt 0:00:49]} e2 {[%emt 0:00:39]} 41. Kg2 {[%emt 0:30:36]} g5 {[%emt 0:02:37]} 42. Kf3 {[%emt 0:00:00]} g4+ {[%emt 0:03:55]} 43. Ke3 {[%emt 0:00:00]} Bc5+ {[%emt 0:00:06]} 44. Kd3 {[%emt 0:00:00]} Ba7 {[%emt 0:00:11]} 45. Rxe2 {[%emt 0:00:00]} Rxe2 {[%emt 0:01:32]} 46. Ra8 {[%emt 0:00:00]} Rb2 {[%emt 0:02:04]} 47. Rxa7 {[%emt 0:00:00]} Kf6 {[%emt 0:01:50]} 48. Kc3 {[%emt 0:00:00]} Rb1 {[%emt 0:00:35]} 49. Kc4 {[%emt 0:00:00]} h5 {[%emt 0:03:22]} 50. Kc5 {[%emt 0:00:00]} Rb2 {[%emt 0:00:34]} 51. Kd6 {[%emt 0:00:00]} Rd2+ {[%emt 0:00:37]} 52. Kc7 {[%emt 0:00:00]} Rc2+ {[%emt 0:00:04]} 53. Kb8 {[%emt 0:00:00]} Rxh2 {[%emt 0:00:53]} 54. Ra6 {[%emt 0:00:00]} Rb2 {[%emt 0:13:53]} 55. Kc7 {[%emt 0:00:00]} 1-0

[Event "WTCC-50 2018"]
[Site "Radebeul"]
[Date "2018.07.07"]
[Round "1"]
[White "Hebden, Mark"]
[Black "Goldinger, Peter"]
[Result "1-0"]
[ECO "A46"]
[WhiteElo "2423"]
[BlackElo "2038"]
[Annotator "NA"]
[PlyCount "89"]
[EventDate "2018.07.07"]
[EventType "team-tourn"]
[EventCountry "GER"]
[SourceTitle "playchess.com"]
[Source "ChessBase"]
[SourceQuality "1"]
[TimeControl "40/5400+30:1800+30"]

1. d4 {[%emt 0:00:00]} e6 {[%emt 0:00:00]} 2. Nf3 {[%emt 0:00:10]} Nf6 {[%emt 0:00:10]} 3. e3 {[%emt 0:00:42]} b6 {[%emt 0:01:08]} 4. Bd3 {[%emt 0:00:08]} d5 {[%emt 0:00:48]} 5. O-O {[%emt 0:00:37]} Bb7 {[%emt 0:00:24]} 6. b3 {[%emt 0:01:26]} Nbd7 {[%emt 0:00:26]} 7. Bb2 {[%emt 0:00:49]} Ne4 {[%emt 0:01:41]} 8. c4 {[%emt 0:00:30]} Be7 {[%emt 0:00:27]} 9. Nc3 {[%emt 0:01:29]} O-O {[%emt 0:00:36]} 10. Rc1 {[%emt 0:00:58]} f5 {[%emt 0:01:13]} 11. Qe2 {[%emt 0:02:03]} Bf6 {[%emt 0:13:27]} 12. Rfd1 {[%emt 0:01:29]} c6 {[%emt 0:03:05]} 13. Rc2 {[%emt 0:07:05]} Kh8 {[%emt 0:01:07]} 14. Rdc1 {[%emt 0:04:02]} g5 {[%emt 0:02:28]} 15. cxd5 {[%emt 0:00:45]} exd5 {[%emt 0:00:12]} 16. Ba6 {[%emt 0:02:01]} Nxc3 {[%emt 0:17:34]} 17. Bxc3 {[%emt 0:01:08]} Bxa6 {[%emt 0:01:39]} 18. Qxa6 {[%emt 0:00:05]} Qe7 {[%emt 0:00:19]} 19. Bb2 {[%emt 0:08:52]} Rac8 {[%emt 0:03:22]} 20. Qxa7 {[%emt 0:17:06]} c5 {[%emt 0:02:30]} 21. Qb7 {[%emt 0:13:09]} g4 {[%emt 0:01:05]} 22. Ne1 {[%emt 0:01:41]} f4 {[%emt 0:05:58]} 23. exf4 {[%emt 0:02:00]} Rfe8 {[%emt 0:00:20]} 24. g3 {[%emt 0:03:54]} Qe6 {[%emt 0:01:41]} 25. Ng2 {[%emt 0:04:23]} Rb8 {[%emt 0:00:22]} 26. Qc7 {[%emt 0:00:42]} Rec8 {[%emt 0:00:22]} 27. f5 {[%emt 0:00:08]} Qxf5 {[%emt 0:02:07]} 28. Qf4 {[%emt 0:00:42]} Qg6 {[%emt 0:01:06]} 29. Ne3 {[%emt 0:00:36]} Rf8 {[%emt 0:09:43]} 30. Nxd5 {[%emt 0:04:56]} Bg7 {[%emt 0:01:22]} 31. Qc7 {[%emt 0:00:26]} Qf7 {[%emt 0:01:39]} 32. Nf4 {[%emt 0:04:37]} cxd4 {[%emt 0:03:37]} 33. Nd3 {[%emt 0:02:08]} Rbe8 {[%emt 0:02:49]} 34. Qc4 {[%emt 0:04:50]} Qf6 {[%emt 0:14:30]} 35. Qd5 {[%emt 0:00:56]} Ne5 {[%emt 0:05:15]} 36. Nxe5 {[%emt 0:00:58]} Qxe5 {[%emt 0:00:08]} 37. Qxe5 {[%emt 0:00:24]} Bxe5 {[%emt 0:00:10]} 38. Rd1 {[%emt 0:00:36]} Kg8 {[%emt 0:02:39]} 39. Bxd4 {[%emt 0:00:29]} Rd8 {[%emt 0:00:35]} 40. Rcd2 {[%emt 0:00:15]} Bc7 {[%emt 0:00:21]} 41. Be3 {[%emt 0:30:36]} Rxd2 {[%emt 0:30:44]} 42. Rxd2 {[%emt 0:00:08]} Rd8 {[%emt 0:00:26]} 43. Rc2 {[%emt 0:00:32]} Rd7 {[%emt 0:00:19]} 44. Rc6 {[%emt 0:01:18]} b5 {[%emt 0:01:33]} 45. Rc5 {[%emt 0:00:07]} 1-0

[Event "WTCC-50 2018"]
[Site "Radebeul"]
[Date "2018.07.07"]
[Round "1"]
[White "Wolf, Volker"]
[Black "Beltz, Martina"]
[Result "1-0"]
[ECO "B23"]
[WhiteElo "2323"]
[BlackElo "1944"]
[Annotator "NA"]
[PlyCount "43"]
[EventDate "2018.07.07"]
[EventType "team-tourn"]
[EventCountry "GER"]
[SourceTitle "playchess.com"]
[Source "ChessBase"]
[SourceQuality "1"]
[TimeControl "40/5400+30:1800+30"]

1. e4 {[%emt 0:00:00]} c5 {[%emt 0:00:00]} 2. Nc3 {[%emt 0:00:14]} d6 {[%emt 0:01:44]} 3. d4 {[%emt 0:00:17]} cxd4 {[%emt 0:00:08]} 4. Qxd4 {[%emt 0:00:02]} Nf6 {[%emt 0:03:38]} 5. b3 {[%emt 0:00:11]} Nc6 {[%emt 0:03:23]} 6. Qd2 {[%emt 0:00:15]} e6 {[%emt 0:03:05]} 7. Bb2 {[%emt 0:00:26]} Be7 {[%emt 0:00:08]} 8. O-O-O {[%emt 0:00:37]} O-O {[%emt 0:06:25]} 9. Kb1 {[%emt 0:01:22]} Qa5 {[%emt 0:04:40]} 10. f3 {[%emt 0:01:26]} a6 {[%emt 0:08:19]} 11. Nge2 {[%emt 0:08:32]} b5 {[%emt 0:04:41]} 12. Nf4 {[%emt 0:06:30]} Bb7 {[%emt 0:01:15]} 13. g4 {[%emt 0:04:16]} Rac8 {[%emt 0:09:41]} 14. g5 {[%emt 0:02:47]} Nd7 {[%emt 0:00:16]} 15. h4 {[%emt 0:00:33]} Nde5 {[%emt 0:01:12]} 16. Be2 {[%emt 0:01:20]} Rfd8 {[%emt 0:05:05]} 17. Rhg1 {[%emt 0:05:39]} b4 {[%emt 0:06:33]} 18. Na4 {[%emt 0:00:16]} Na7 {[%emt 0:00:34]} 19. Bd4 {[%emt 0:01:39]} Nec6 {[%emt 0:06:54]} 20. Bb6 {[%emt 0:02:49]} Qe5 {[%emt 0:00:08]} 21. Nd3 {[%emt 0:00:33]} Qb5 {[%emt 0:06:04]} 22. Nf2 {[%emt 0:22:28]} 1-0

[Event "WTCC-50 2018"]
[Site "Radebeul"]
[Date "2018.07.07"]
[Round "1"]
[White "Wallner, Joachim"]
[Black "Frick, Renato"]
[Result "1-0"]
[ECO "A01"]
[WhiteElo "2311"]
[BlackElo "2051"]
[Annotator "NA"]
[PlyCount "77"]
[EventDate "2018.07.07"]
[EventType "team-tourn"]
[EventCountry "GER"]
[SourceTitle "playchess.com"]
[Source "ChessBase"]
[SourceQuality "1"]
[TimeControl "40/5400+30:1800+30"]

1. b3 {[%emt 0:00:00]} e5 {[%emt 0:00:00]} 2. Bb2 {[%emt 0:00:00]} Nc6 {[%emt 0:00:00]} 3. e3 {[%emt 0:00:00]} f5 {[%emt 0:01:53]} 4. Bb5 {[%emt 0:03:28]} d6 {[%emt 0:02:32]} 5. f4 {[%emt 0:03:25]} Bd7 {[%emt 0:05:08]} 6. fxe5 {[%emt 0:02:48]} Nxe5 {[%emt 0:00:10]} 7. Bxd7+ {[%emt 0:00:29]} Qxd7 {[%emt 0:02:51]} 8. Nf3 {[%emt 0:00:21]} Nxf3+ {[%emt 0:02:38]} 9. Qxf3 {[%emt 0:00:11]} O-O-O {[%emt 0:00:17]} 10. O-O {[%emt 0:04:51]} Nh6 {[%emt 0:00:11]} 11. a4 {[%emt 0:02:05]} Rg8 {[%emt 0:07:45]} 12. Nc3 {[%emt 0:01:12]} d5 {[%emt 0:09:32]} 13. Nb5 {[%emt 0:04:48]} Kb8 {[%emt 0:04:59]} 14. Be5 {[%emt 0:02:12]} Rc8 {[%emt 0:00:11]} 15. c4 {[%emt 0:01:16]} a6 {[%emt 0:04:29]} 16. Ra2 {[%emt 0:10:13]} Nf7 {[%emt 0:04:42]} 17. Bxc7+ {[%emt 0:11:17]} Rxc7 {[%emt 0:00:32]} 18. Nxc7 {[%emt 0:00:03]} Kxc7 {[%emt 0:08:19]} 19. Qxf5 {[%emt 0:02:08]} Nh6 {[%emt 0:04:24]} 20. Qxh7 {[%emt 0:05:37]} Qe6 {[%emt 0:00:08]} 21. Rc2 {[%emt 0:04:42]} Kb8 {[%emt 0:10:38]} 22. c5 {[%emt 0:02:36]} Be7 {[%emt 0:02:32]} 23. Qd3 {[%emt 0:03:56]} Rc8 {[%emt 0:01:40]} 24. b4 {[%emt 0:03:47]} g6 {[%emt 0:08:05]} 25. b5 {[%emt 0:02:18]} Rxc5 {[%emt 0:06:19]} 26. Rxc5 {[%emt 0:01:36]} Bxc5 {[%emt 0:00:10]} 27. bxa6 {[%emt 0:01:06]} b6 {[%emt 0:02:47]} 28. a5 {[%emt 0:06:56]} Ng4 {[%emt 0:05:57]} 29. axb6 {[%emt 0:02:59]} Bxb6 {[%emt 0:00:40]} 30. h3 {[%emt 0:03:59]} Ne5 {[%emt 0:00:30]} 31. Qb5 {[%emt 0:02:38]} Ka7 {[%emt 0:01:54]} 32. Rf8 {[%emt 0:02:07]} Nc4 {[%emt 0:01:03]} 33. Re8 {[%emt 0:01:56]} Qd6 {[%emt 0:00:15]} 34. Rg8 {[%emt 0:02:03]} Qe7 {[%emt 0:02:54]} 35. Qxd5 {[%emt 0:00:59]} Bxe3+ {[%emt 0:00:05]} 36. dxe3 {[%emt 0:02:33]} Qxe3+ {[%emt 0:00:09]} 37. Kh2 {[%emt 0:00:22]} Qf4+ {[%emt 0:00:19]} 38. g3 {[%emt 0:00:05]} Qf2+ {[%emt 0:00:37]} 39. Qg2 {[%emt 0:00:05]} 1-0

[Event "WTCC-50 2018"]
[Site "Radebeul"]
[Date "2018.07.07"]
[Round "1"]
[White "Fritsche, Lutz"]
[Black "Gempe, Anet"]
[Result "1-0"]
[ECO "C13"]
[WhiteElo "2303"]
[BlackElo "1992"]
[Annotator "NA"]
[PlyCount "101"]
[EventDate "2018.07.07"]
[EventType "team-tourn"]
[EventCountry "GER"]
[SourceTitle "playchess.com"]
[Source "ChessBase"]
[SourceQuality "1"]
[TimeControl "40/5400+30:1800+30"]

1. e4 {[%emt 0:00:00]} e6 {[%emt 0:00:00]} 2. d4 {[%emt 0:00:08]} d5 {[%emt 0:00:00]} 3. Nc3 {[%emt 0:00:23]} Nf6 {[%emt 0:00:00]} 4. Bg5 {[%emt 0:00:44]} Be7 {[%emt 0:00:13]} 5. e5 {[%emt 0:00:11]} Nfd7 {[%emt 0:00:10]} 6. h4 {[%emt 0:00:23]} c5 {[%emt 0:00:41]} 7. Bxe7 {[%emt 0:00:29]} Kxe7 {[%emt 0:00:03]} 8. Nf3 {[%emt 0:00:31]} Nc6 {[%emt 0:00:19]} 9. dxc5 {[%emt 0:03:54]} Nxc5 {[%emt 0:04:20]} 10. Qd2 {[%emt 0:02:14]} a6 {[%emt 0:03:16]} 11. O-O-O {[%emt 0:01:18]} b5 {[%emt 0:06:13]} 12. Qe3 {[%emt 0:08:03]} Nd7 {[%emt 0:03:39]} 13. Ne2 {[%emt 0:11:49]} Qa5 {[%emt 0:14:19]} 14. Kb1 {[%emt 0:00:53]} Bb7 {[%emt 0:00:22]} 15. Qg5+ {[%emt 0:06:26]} Kf8 {[%emt 0:02:05]} 16. Ned4 {[%emt 0:00:09]} Nxd4 {[%emt 0:01:34]} 17. Nxd4 {[%emt 0:00:08]} h6 {[%emt 0:02:09]} 18. Qf4 {[%emt 0:01:27]} Ke7 {[%emt 0:00:19]} 19. Rh3 {[%emt 0:05:11]} b4 {[%emt 0:05:56]} 20. Rf3 {[%emt 0:06:52]} Rhf8 {[%emt 0:09:50]} 21. h5 {[%emt 0:07:26]} Nc5 {[%emt 0:04:39]} 22. Bd3 {[%emt 0:06:45]} f5 {[%emt 0:25:35]} 23. Bxf5 {[%emt 0:11:20]} exf5 {[%emt 0:05:24]} 24. Nxf5+ {[%emt 0:00:09]} Kd8 {[%emt 0:00:18]} 25. Qh4+ {[%emt 0:11:16]} Kc7 {[%emt 0:02:19]} 26. e6 {[%emt 0:07:22]} Rg8 {[%emt 0:04:09]} 27. Qe7+ {[%emt 0:01:32]} Kb6 {[%emt 0:00:14]} 28. Nd6 {[%emt 0:00:26]} Qa4 {[%emt 0:02:38]} 29. a3 {[%emt 0:03:30]} a5 {[%emt 0:00:22]} 30. Nxb7 {[%emt 0:02:39]} Nxb7 {[%emt 0:00:04]} 31. Rxd5 {[%emt 0:00:27]} Rae8 {[%emt 0:01:09]} 32. Qh4 {[%emt 0:00:42]} Rxe6 {[%emt 0:00:57]} 33. Qd4+ {[%emt 0:00:09]} Kc7 {[%emt 0:00:52]} 34. Rf7+ {[%emt 0:00:33]} Kc8 {[%emt 0:00:54]} 35. Qg4 {[%emt 0:00:49]} Qc6 {[%emt 0:00:29]} 36. Rdd7 {[%emt 0:00:52]} Qxd7 {[%emt 0:00:16]} 37. Rxd7 {[%emt 0:00:08]} Kxd7 {[%emt 0:00:03]} 38. axb4 {[%emt 0:00:12]} axb4 {[%emt 0:00:09]} 39. Qxb4 {[%emt 0:00:40]} Nd6 {[%emt 0:00:25]} 40. Qa4+ {[%emt 0:00:28]} Ke7 {[%emt 0:02:06]} 41. Qa7+ {[%emt 0:30:39]} Kf6 {[%emt 0:03:53]} 42. Qd4+ {[%emt 0:00:00]} Kf7 {[%emt 0:01:52]} 43. Qd5 {[%emt 0:00:00]} g6 {[%emt 0:02:43]} 44. f4 {[%emt 0:00:00]} Ke7 {[%emt 0:00:43]} 45. hxg6 {[%emt 0:00:00]} Rexg6 {[%emt 0:06:00]} 46. f5 {[%emt 0:00:00]} Rxg2 {[%emt 0:01:42]} 47. Qe6+ {[%emt 0:00:00]} Kf8 {[%emt 0:00:29]} 48. f6 {[%emt 0:00:00]} Nc8 {[%emt 0:00:50]} 49. f7 {[%emt 0:00:00]} Rh8 {[%emt 0:01:17]} 50. Qe8+ {[%emt 0:00:00]} Kg7 {[%emt 0:00:10]} 51. Qxh8+ {[%emt 0:00:00]} 1-0